bitfinex/quotes_SOLUSD_20240708
["timestamp","ask_amount","ask_price","bid_price","bid_amount"]
[1720435798318,22.6529,140.24,140.18,0.17]
[1720435798520,15.5222,140.24,140.18,0.17]
[1720435798841,7.1317,140.22,140.18,0.17]
[1720435799238,22.6529,140.24,140.18,0.17]
[1720435799432,20.0,140.23,140.18,0.17]
[1720435799742,27.1311,140.23,140.18,0.17]
[1720435800540,20.0,140.23,140.18,0.17]
[1720435801147,7.132,140.22,140.18,0.17]
[1720435801445,20.0,140.21,140.18,0.17]
[1720435802023,20.0,140.22,140.18,0.17]
[1720435802225,22.1561,140.27,140.17,0.17]
[1720435802416,22.1561,140.27,140.13,206.1622]
[1720435802417,15.727,140.27,140.14,20.17]
[1720435802629,7.1314,140.23,140.17,7.1338]
[1720435802838,7.1327,140.2,140.18,0.17]
[1720435803050,7.1308,140.24,140.18,0.17]
[1720435803356,7.1306,140.24,140.18,7.3033]
[1720435803562,7.1312,140.23,140.18,0.17]
[1720435803762,15.727,140.27,140.18,0.17]
[1720435804045,15.727,140.27,140.16,100.0]
[1720435804046,15.727,140.27,140.17,0.17]
[1720435804345,22.8562,140.27,140.21,7.1321]
[1720435804540,22.8562,140.27,140.22,0.17]
[1720435805349,20.0,140.26,140.22,0.17]
[1720435806322,22.7662,140.31,140.22,0.17]
[1720435806528,7.1261,140.33,140.21,0.17]
[1720435806724,21.3449,140.35,140.21,0.17]
[1720435806725,7.1272,140.31,140.25,7.1298]
[1720435807025,21.3449,140.35,140.28,7.1284]
[1720435807231,15.1923,140.35,140.29,7.2977]
[1720435807442,7.1245,140.36,140.29,7.2977]
[1720435807632,28.7307,140.38,140.31,7.1268]
[1720435807840,7.1241,140.37,140.32,0.17]
[1720435808046,21.6071,140.38,140.32,0.17]
[1720435808245,21.6071,140.38,140.32,7.2961]
[1720435808472,18.08371501,140.43,140.33,7.1259]
[1720435808473,22.8404,140.42,140.33,7.1259]
[1720435808625,22.8404,140.42,140.34,0.17]
[1720435808948,7.1226,140.4,140.34,0.17]
[1720435809127,7.1233,140.39,140.34,0.17]
[1720435809738,22.8404,140.42,140.34,0.17]
[1720435809941,20.0,140.41,140.34,0.17]
[1720435810356,7.1213,140.43,140.36,7.124]
[1720435810537,21.5016,140.46,140.37,7.2938]
[1720435810745,21.5016,140.46,140.37,7.1238]
[1720435810746,7.1205,140.44,140.37,7.1238]
[1720435811054,7.1205,140.44,140.38,0.17]
[1720435811460,17.8008,140.45,140.38,0.17]
[1720435811776,7.1226,140.4,140.38,0.17]
[1720435811937,20.0,140.39,140.38,0.17]
[1720435816348,21.5016,140.46,140.38,7.293]
[1720435816552,7.1209,140.44,140.38,7.2934]
[1720435817539,30.69389827,140.5,140.38,0.17]
[1720435817857,7.1199,140.46,140.39,7.1229]
[1720435818061,7.1199,140.45,140.4,0.17]
[1720435818539,7.1196,140.46,140.4,0.17]
[1720435818942,7.1201,140.45,140.4,0.17]
[1720435819140,7.1208,140.44,140.4,0.17]
[1720435819362,7.1208,140.44,140.39,0.17]
[1720435819941,7.12,140.45,140.39,0.17]
[1720435820249,20.0,140.44,140.39,7.2928]
[1720435820560,20.0,140.44,140.41,7.1215]
[1720435820763,7.1188,140.48,140.42,0.17]
[1720435820960,27.1189,140.47,140.42,0.17]
[1720435821341,7.1194,140.46,140.42,0.17]
[1720435821542,27.12,140.45,140.42,0.17]
[1720435821766,7.12,140.45,140.42,0.17]
[1720435822268,27.1194,140.47,140.42,0.17]
[1720435822472,7.1196,140.46,140.42,0.17]
[1720435822782,20.0,140.45,140.41,0.17]
[1720435823769,7.1195,140.46,140.4,7.2924]
[1720435823971,20.0,140.45,140.4,7.2924]
[1720435824778,20.0,140.45,140.41,7.1218]
[1720435824974,20.0,140.46,140.42,0.17]
[1720435825378,21.7069,140.5,140.42,0.17]
[1720435825571,15.4552,140.5,140.47,7.1189]
[1720435825778,6.0372,140.53,140.48,0.17]
[1720435825955,6.0372,140.53,140.47,7.1189]
[1720435826275,13.1531,140.53,140.48,0.17]
[1720435826801,7.1168,140.52,140.48,0.17]
[1720435826953,6.0372,140.53,140.48,0.17]
[1720435827288,6.0372,140.53,140.41,106.5741]
[1720435827289,7.1144,140.56,140.47,0.17]
[1720435827579,7.114,140.57,140.5,7.1173]
[1720435827781,7.114,140.57,140.51,7.2869]
[1720435828078,22.0013,140.58,140.51,0.17]
[1720435828764,7.114,140.57,140.51,0.17]
[1720435828980,22.7446,140.62,140.51,0.17]
[1720435829162,22.7446,140.62,140.5,0.17]
[1720435829364,7.1124,140.6,140.53,7.1158]
[1720435829557,7.1124,140.6,140.54,0.17]
[1720435829881,7.1129,140.59,140.54,0.17]
[1720435830080,7.1124,140.6,140.53,7.2857]
[1720435830277,7.1119,140.61,140.54,7.1153]
[1720435830461,22.7446,140.62,140.55,0.17]
[1720435830462,7.1123,140.6,140.55,0.17]
[1720435831084,22.7446,140.62,140.55,0.17]
[1720435831261,7.1119,140.61,140.55,7.2847]
[1720435831684,29.856,140.62,140.55,7.2847]
[1720435832556,7.1113,140.63,140.56,13.6973]
[1720435832762,15.6223,140.68,140.57,0.17]
[1720435832983,38.66790637,140.68,140.57,0.17]
[1720435833184,74.0872,140.66,140.57,0.17]
[1720435833385,7.1129,140.59,140.57,0.17]
[1720435833578,7.1153,140.55,140.47,6.1291]
[1720435833775,39.7127,140.61,140.47,6.1291]
[1720435833980,7.1142,140.57,140.5,7.1172]
[1720435834359,7.1149,140.55,140.47,6.1291]
[1720435834578,20.0,140.54,140.47,6.1291]
[1720435834778,27.1158,140.54,140.48,7.1184]
[1720435835085,20.0,140.54,140.44,6.3946]
[1720435835281,7.1169,140.51,140.45,7.1195]
[1720435835472,7.1164,140.53,140.47,7.1189]
[1720435835667,20.0,140.52,140.47,7.1189]
[1720435836090,20.0,140.52,140.44,6.3946]
[1720435836283,27.21178649,140.61,140.46,200.0]
[1720435836490,27.21178649,140.61,140.44,106.3946]
[1720435836667,27.21178649,140.61,140.45,0.17]
[1720435836988,7.115,140.55,140.48,7.1183]
[1720435837187,27.21178649,140.61,140.49,0.17]
[1720435837484,7.115,140.55,140.49,0.17]
[1720435837679,7.115,140.55,140.49,7.2878]
[1720435837880,7.1127,140.6,140.53,7.1156]
[1720435838089,7.1127,140.6,140.54,7.2852]
[1720435838389,21.9324,140.61,140.55,0.17]
[1720435838578,7.1129,140.59,140.55,0.17]
[1720435838985,7.1125,140.6,140.54,0.17]
[1720435839183,20.0,140.59,140.54,7.2853]
[1720435839586,21.9324,140.61,140.54,0.17]
[1720435839786,15.541,140.61,140.54,0.17]
[1720435839986,15.541,140.61,140.56,7.114]
[1720435840194,31.45564827,140.65,140.57,1.59208571]
[1720435840370,31.45564827,140.65,140.58,7.2832]
[1720435840371,29.7197,140.65,140.58,7.2832]
[1720435840575,29.7197,140.65,140.59,1.42207569]
[1720435840788,29.7197,140.65,140.6,0.17]
[1720435841099,7.1104,140.64,140.6,0.17]
[1720435841406,7.1118,140.61,140.6,0.17]
[1720435841609,22.6097,140.65,140.52,6.289]
[1720435841776,40.3852,140.65,140.53,0.17]
[1720435841976,22.6097,140.65,140.53,0.17]
[1720435842476,7.1114,140.62,140.55,7.1149]
[1720435842788,20.0,140.61,140.56,0.17]
[1720435842986,20.0,140.64,140.58,7.1133]
[1720435843170,27.1104,140.64,140.59,0.17]
[1720435843597,7.1104,140.64,140.59,0.17]
[1720435843799,7.1104,140.64,140.58,0.17]
[1720435843996,7.111,140.63,140.58,0.17]
[1720435844201,22.6097,140.65,140.57,0.17]
[1720435844402,7.1109,140.63,140.57,0.17]
[1720435844805,20.0,140.62,140.57,0.17]
[1720435845104,20.0,140.62,140.48,11.35457237]
[1720435845307,60.27901384,140.64,140.52,7.1163]
[1720435845606,17.7794,140.62,140.48,6.2245]
[1720435845781,7.1139,140.57,140.51,7.1168]
[1720435845992,7.1144,140.56,140.5,7.1173]
[1720435846196,15.0,140.58,140.5,7.1173]
[1720435846389,7.1145,140.56,140.49,7.1178]
[1720435846701,7.1164,140.52,140.45,7.1197]
[1720435846925,7.1158,140.54,140.47,7.1188]
[1720435847206,20.0,140.53,140.47,7.1188]
[1720435847782,20.0,140.53,140.48,0.17]
[1720435848383,20.0,140.53,140.48,7.2883]
[1720435848694,27.1157,140.54,140.48,0.17]
[1720435848890,20.0,140.54,140.42,20.0]
[1720435849189,7.1159,140.53,140.43,20.0]
[1720435849394,20.0,140.52,140.43,20.0]
[1720435849580,20.0,140.52,140.47,7.1188]
[1720435849994,20.0,140.53,140.47,7.1188]
[1720435850194,20.0,140.53,140.48,7.2884]
[1720435850408,20.0,140.53,140.48,0.17]
[1720435850782,20.0,140.53,140.48,7.2882]
[1720435851106,7.1149,140.55,140.48,7.2882]
[1720435851107,20.0,140.54,140.48,7.2883]
[1720435851277,20.0,140.54,140.48,0.17]
[1720435851477,7.1159,140.53,140.47,7.2889]
[1720435851702,20.0,140.52,140.47,7.2889]
[1720435852328,27.1165,140.52,140.47,0.17]
[1720435852488,20.0,140.52,140.47,0.17]
[1720435852882,20.0,140.52,140.47,7.2889]
[1720435853193,20.0,140.52,140.48,7.1182]
[1720435853392,20.0,140.52,140.49,0.17]
[1720435853597,20.0,140.56,140.5,7.1173]
[1720435853905,27.1144,140.56,140.51,0.17]
[1720435854330,7.1151,140.55,140.51,0.17]
[1720435854496,27.1145,140.56,140.5,0.17]
[1720435854804,20.0,140.56,140.52,7.116]
[1720435855022,27.114,140.57,140.53,0.17]
[1720435855193,27.114,140.57,140.5,7.2871]
[1720435855519,15.0,140.58,140.53,7.1158]
[1720435855697,15.0,140.58,140.54,0.17]
[1720435856305,15.0,140.58,140.53,0.17]
[1720435856910,22.1136,140.58,140.53,0.17]
[1720435857111,20.0,140.57,140.49,7.1174]
[1720435857288,7.1147,140.56,140.49,7.1174]
[1720435857489,20.0,140.57,140.47,7.1186]
[1720435857696,7.1156,140.54,140.48,7.1183]
[1720435858033,20.0,140.53,140.49,7.1178]
[1720435858394,20.0,140.53,140.5,0.17]
[1720435858697,7.1149,140.55,140.45,6.6333]
[1720435858698,20.0,140.54,140.49,7.2879]
[1720435859419,20.0,140.54,140.49,0.17]
[1720435859915,27.1154,140.54,140.49,0.17]
[1720435860118,20.0,140.54,140.49,7.2878]
[1720435860315,20.0,140.54,140.49,0.17]
[1720435860497,20.0,140.57,140.49,0.17]
[1720435860693,7.1152,140.55,140.49,7.2879]
[1720435860893,20.0,140.54,140.49,7.2879]
[1720435862423,20.0,140.54,140.45,6.6333]
[1720435862717,7.1165,140.52,140.46,7.1194]
[1720435862894,20.0,140.51,140.45,13.7531]
[1720435863097,20.0,140.51,140.45,6.6333]
[1720435863311,20.0,140.52,140.47,7.1186]
[1720435863513,27.1165,140.52,140.46,7.1194]
[1720435863712,27.1165,140.52,140.45,6.6333]
[1720435863713,27.1165,140.52,140.45,13.7531]
[1720435864024,20.0,140.52,140.45,6.6333]
[1720435864202,20.0,140.52,140.47,7.1189]
[1720435864723,7.117,140.51,140.45,13.7527]
[1720435865021,20.0,140.52,140.46,7.1193]
[1720435865327,27.1165,140.52,140.47,0.17]
[1720435865495,20.0,140.52,140.47,0.17]
[1720435865824,6.5317,140.53,140.41,6.1893]
[1720435866030,20.0,140.52,140.48,7.118]
[1720435866333,6.5317,140.57,140.52,7.1162]
[1720435866485,22.1134,140.58,140.46,6.6234]
[1720435866691,22.1134,140.58,140.47,20.0]
[1720435866886,7.1139,140.57,140.51,7.1165]
[1720435867398,22.1134,140.58,140.52,7.2864]
[1720435868029,22.1134,140.58,140.52,0.17]
[1720435868222,7.114,140.57,140.52,0.17]
[1720435869425,20.0,140.56,140.52,0.17]
[1720435869632,20.0,140.56,140.47,20.0]
[1720435869929,7.1145,140.56,140.46,6.6234]
[1720435870104,20.0,140.55,140.46,6.6234]
[1720435870830,7.1153,140.55,140.49,7.1175]
[1720435871031,7.1153,140.55,140.5,0.17]
[1720435871326,7.1145,140.56,140.5,7.2872]
[1720435871623,20.0,140.55,140.5,0.17]
[1720435871806,20.0,140.57,140.52,7.1159]
[1720435872008,27.1141,140.57,140.53,0.17]
[1720435872309,7.116,140.53,140.47,7.1188]
[1720435872509,7.1164,140.52,140.42,6.0564]
[1720435872813,7.1164,140.52,140.46,7.1193]
[1720435873339,7.1186,140.48,140.42,13.1775]
[1720435873521,7.1183,140.49,140.43,7.1209]
[1720435874728,20.0,140.48,140.41,7.1215]
[1720435875033,16.2037,140.46,140.35,17.7902]
[1720435875209,7.1208,140.44,140.35,17.7902]
[1720435875403,7.1208,140.44,140.32,6.6489]
[1720435875633,20.0,140.43,140.37,7.1239]
[1720435876134,27.1211,140.43,140.37,7.1239]
[1720435876504,20.0,140.43,140.37,7.1239]
[1720435876704,20.0,140.43,140.39,7.1228]
[1720435876930,20.0,140.44,140.39,7.1228]
[1720435877232,23.3231,140.46,140.38,7.1234]
[1720435877233,27.1201,140.45,140.38,7.1234]
[1720435877736,27.1201,140.45,140.32,26.6489]
[1720435877899,16.2037,140.46,140.35,100.0]
[1720435878104,16.2037,140.46,140.36,0.17]
[1720435878341,16.2037,140.46,140.41,7.1219]
[1720435878521,16.2037,140.46,140.42,0.17]
[1720435879219,27.1204,140.45,140.42,0.17]
[1720435879415,27.1203,140.45,140.38,7.1233]
[1720435880514,20.0,140.45,140.39,7.1225]
[1720435880732,20.0,140.45,140.33,100.0]
[1720435881045,20.0,140.45,140.4,7.1223]
[1720435881330,20.0,140.45,140.41,0.17]
[1720435881508,27.12,140.45,140.41,0.17]
[1720435881708,27.12,140.45,140.4,0.17]
[1720435881914,7.1205,140.44,140.38,7.1234]
[1720435882131,7.1205,140.44,140.32,26.6489]
[1720435882132,27.121,140.43,140.36,7.124]
[1720435882306,7.1216,140.42,140.36,7.124]
[1720435882525,20.0,140.41,140.36,7.124]
[1720435883320,27.122,140.41,140.37,0.17]
[1720435883520,27.122,140.41,140.35,7.1249]
[1720435883936,54.7437,140.46,140.32,7.1249]
[1720435884113,7.1201,140.45,140.39,7.1226]
[1720435884317,20.0,140.44,140.39,7.1226]
[1720435884517,20.0,140.44,140.36,7.1243]
[1720435884715,7.122,140.41,140.35,7.1249]
[1720435885452,22.4668,140.4,140.32,7.1249]
[1720435885746,27.1233,140.39,140.33,7.126]
[1720435886048,20.0,140.39,140.34,7.1254]
[1720435886740,20.0,140.39,140.35,7.1249]
[1720435886938,22.4668,140.4,140.39,7.123]
[1720435887242,22.4668,140.4,140.29,11.907217]
[1720435887445,22.4668,140.4,140.36,7.1243]
[1720435887748,22.4668,140.4,140.37,0.17]
[1720435888348,22.4668,140.4,140.35,7.1249]
[1720435888349,22.4668,140.4,140.36,0.17]
[1720435888726,22.4668,140.4,140.36,7.2945]
[1720435889438,22.4668,140.4,140.36,0.17]
[1720435889657,22.4668,140.4,140.32,7.1264]
[1720435889658,7.1235,140.38,140.32,7.1264]
[1720435889818,27.1231,140.39,140.33,7.1259]
[1720435890019,20.0,140.39,140.32,7.1264]
[1720435890741,7.1236,140.38,140.32,7.1264]
[1720435890951,20.0,140.37,140.32,7.1264]
[1720435891321,20.0,140.37,140.26,1.22991843]
[1720435891534,6.1284,140.37,140.27,7.129]
[1720435891738,7.1256,140.34,140.28,7.1284]
[1720435891946,27.1261,140.33,140.27,7.129]
[1720435892134,22.4475,140.32,140.26,7.1292]
[1720435892440,15.3205,140.32,140.27,7.129]
[1720435892845,15.3205,140.32,140.28,7.1283]
[1720435893030,15.3205,140.32,140.29,7.128]
[1720435893738,15.3205,140.32,140.3,0.17]
[1720435894245,15.3205,140.32,140.29,0.17]
[1720435894544,22.4472,140.32,140.25,7.1297]
[1720435894719,20.0,140.31,140.25,7.1297]
[1720435894923,20.0,140.31,140.26,7.1294]
[1720435895448,20.0,140.31,140.27,7.129]
[1720435895837,20.0,140.31,140.28,0.17]
[1720435896039,15.3205,140.32,140.3,7.1275]
[1720435896239,15.3205,140.32,140.22,111.907217]
[1720435896240,15.3205,140.32,140.26,7.1293]
[1720435896453,7.1295,140.27,140.21,7.132]
[1720435896753,7.1295,140.27,140.2,1.23061985]
[1720435896754,26.0631,140.31,140.24,7.1305]
[1720435897254,26.0631,140.31,140.17,6.0952]
[1720435897442,7.1279,140.3,140.23,7.1306]
[1720435897633,27.1281,140.29,140.23,7.1306]
[1720435898035,27.1281,140.29,140.19,11.907217]
[1720435898347,15.1184,140.27,140.2,7.1321]
[1720435898557,20.0,140.26,140.13,140.22910943]
[1720435899228,20.0,140.26,140.13,7.84246282]
[1720435899229,6.3992,140.25,140.13,7.84246282]
[1720435899432,20.0,140.24,140.18,7.1332]
[1720435899647,27.1306,140.24,140.18,7.1332]
[1720435899858,7.132,140.22,140.15,7.1348]
[1720435900041,7.1321,140.22,140.14,7.1355]
[1720435900237,16.4843,140.23,140.1,100.0]
[1720435900444,16.4843,140.23,140.22,7.1316]
[1720435900652,16.4843,140.23,140.21,7.1321]
[1720435900955,16.4843,140.23,140.13,100.0]
[1720435901163,16.4843,140.23,140.11,100.0]
[1720435901325,16.4843,140.23,140.1,100.0]
[1720435901525,16.4843,140.23,140.21,7.1319]
[1720435901753,6.3992,140.25,140.22,0.17]
[1720435902631,6.3992,140.25,140.21,0.17]
[1720435904130,6.3992,140.25,140.18,7.1332]
[1720435904351,20.0,140.24,140.18,7.1332]
[1720435904657,20.0,140.24,140.12,100.0]
[1720435904839,20.0,140.24,140.14,100.0]
[1720435905149,16.2221,140.27,140.16,100.0]
[1720435905350,16.2221,140.27,140.26,7.1296]
[1720435905527,16.2221,140.27,140.26,7.2996]
[1720435905944,15.7802,140.31,140.29,7.128]
[1720435906146,15.7802,140.31,140.3,0.17]
[1720435906430,15.7802,140.31,140.21,20.0]
[1720435906650,22.9073,140.31,140.24,7.1301]
[1720435906864,15.7802,140.31,140.26,7.1296]
[1720435907035,15.7802,140.31,140.27,0.17]
[1720435907235,15.7802,140.31,140.25,0.17]
[1720435907236,27.128,140.3,140.25,0.17]
[1720435907451,20.0,140.3,140.25,0.17]
[1720435907656,7.1286,140.28,140.25,0.17]
[1720435907858,27.128,140.3,140.25,0.17]
[1720435908150,20.0,140.3,140.25,0.17]
[1720435908448,6.5297,140.29,140.16,1.65043736]
[1720435908651,20.0,140.28,140.12,106.1082]
[1720435908844,20.0,140.28,140.13,0.91995668]
[1720435909266,7.1296,140.27,140.2,7.1326]
[1720435909434,15.2328,140.25,140.2,7.1326]
[1720435909631,22.3631,140.25,140.18,7.1332]
[1720435909943,27.1308,140.24,140.18,7.1332]
[1720435910264,20.0,140.24,140.18,7.1336]
[1720435910444,20.0,140.24,140.12,6.1082]
[1720435910445,20.0,140.24,140.19,7.1331]
[1720435910641,22.363,140.25,140.12,106.1082]
[1720435910642,15.2328,140.25,140.12,106.1082]
[1720435910857,15.2328,140.25,140.13,100.0]
[1720435911032,15.2328,140.25,140.12,7.75910851]
[1720435911236,15.2328,140.25,140.21,7.132]
[1720435911438,15.2328,140.25,140.12,107.75910851]
[1720435911734,15.2328,140.25,140.19,7.1331]
[1720435912143,20.0,140.24,140.18,7.1335]
[1720435912359,27.1309,140.24,140.19,0.17]
[1720435912555,27.1309,140.24,140.09,6.2715]
[1720435912556,6.1827,140.23,140.09,6.2715]
[1720435912760,15.3607,140.21,140.06,136.43405066]
[1720435913056,15.3607,140.21,140.05,106.0737]
[1720435913057,7.1341,140.18,140.05,106.0737]
[1720435913258,20.0,140.17,140.14,7.1356]
[1720435913435,20.0,140.2,140.14,7.1356]
[1720435913641,27.1327,140.2,140.13,7.136]
[1720435914155,20.0,140.2,140.05,126.0737]
[1720435914354,7.1335,140.19,140.12,7.1366]
[1720435914557,20.0,140.18,140.12,7.1366]
[1720435914773,20.0,140.2,140.14,7.1357]
[1720435914960,20.0,140.2,140.06,100.0]
[1720435915160,20.0,140.2,140.13,7.1357]
[1720435915454,20.0,140.2,140.14,7.3054]
[1720435915665,20.0,140.2,140.14,0.17]
[1720435915832,20.0,140.2,140.13,7.3062]
[1720435916033,20.0,140.2,140.13,0.17]
[1720435916234,20.0,140.2,140.19,7.1331]
[1720435916441,15.3607,140.21,140.19,7.3031]
[1720435916736,15.3607,140.21,140.2,0.17]
[1720435917636,15.3607,140.21,140.13,20.0]
[1720435917949,15.3607,140.21,140.14,0.17]
[1720435918152,15.3607,140.21,140.1,100.0]
[1720435918345,20.0,140.2,140.11,20.0]
[1720435918542,15.3607,140.21,140.18,7.1336]
[1720435918840,15.3607,140.21,140.16,7.1346]
[1720435919043,15.3607,140.21,140.11,20.0]
[1720435919240,15.3607,140.21,140.09,20.0]
[1720435919633,20.0,140.2,140.07,20.0]
[1720435920048,20.0,140.2,140.08,200.0]
[1720435920262,15.3607,140.21,140.1,200.0]
[1720435920451,15.3607,140.21,140.2,7.1326]
[1720435920931,15.3607,140.21,140.2,0.17]
[1720435921334,15.3607,140.21,140.16,7.1346]
[1720435921535,15.3607,140.21,140.17,7.3041]
[1720435921736,7.1327,140.2,140.14,7.1353]
[1720435921943,15.3607,140.21,140.14,7.1356]
[1720435922162,7.1333,140.19,140.12,7.1364]
[1720435922338,20.0,140.2,140.08,101.65137993]
[1720435922847,15.3607,140.21,140.12,100.0]
[1720435923052,15.3607,140.21,140.19,7.1331]
[1720435923253,15.3607,140.21,140.2,7.1326]
[1720435923453,15.3607,140.21,140.12,106.2787]
[1720435923658,15.3607,140.21,140.18,7.1331]
[1720435923850,15.3607,140.21,140.19,0.17]
[1720435924162,15.3607,140.21,140.09,100.0]
[1720435924384,15.3607,140.21,140.16,7.1346]
[1720435924574,20.0,140.2,140.16,7.1346]
[1720435925176,15.3607,140.21,140.13,100.0]
[1720435925462,15.3607,140.21,140.2,7.1326]
[1720435925638,15.3607,140.21,140.2,7.3026]
[1720435926761,15.3607,140.21,140.2,0.17]
[1720435927584,22.4929,140.21,140.15,7.135]
[1720435927771,15.3607,140.21,140.15,7.135]
[1720435928154,22.493,140.21,140.15,7.135]
[1720435928567,27.1327,140.2,140.08,6.2787]
[1720435928777,27.1327,140.2,140.13,7.1358]
[1720435929077,20.0,140.2,140.14,7.1355]
[1720435929287,15.3607,140.21,140.19,7.1331]
[1720435929448,15.3607,140.21,140.09,100.0]
[1720435929449,6.1827,140.23,140.14,100.0]
[1720435929776,6.1827,140.23,140.15,20.0]
[1720435929961,6.1827,140.23,140.15,0.17]
[1720435930164,6.1827,140.23,140.14,0.17]
[1720435930466,6.1827,140.23,140.18,7.1335]
[1720435930676,6.1827,140.23,140.19,0.17]
[1720435930851,13.3142,140.23,140.19,0.17]
[1720435931048,6.1827,140.23,140.19,0.17]
[1720435931272,13.3138,140.23,140.19,0.17]
[1720435931479,13.3138,140.23,140.18,0.17]
[1720435931685,6.1827,140.23,140.18,7.3036]
[1720435932052,6.1827,140.23,140.18,0.17]
[1720435932756,6.1827,140.23,140.18,7.3036]
[1720435933174,6.1827,140.23,140.18,0.17]
[1720435933373,6.1827,140.23,140.21,7.132]
[1720435933551,6.1827,140.23,140.22,0.17]
[1720435933749,6.1827,140.23,140.18,0.17]
[1720435934380,6.1827,140.23,140.2,7.1325]
[1720435934573,6.1827,140.23,140.19,7.133]
[1720435934751,6.1827,140.23,140.21,0.17]
[1720435935171,6.1827,140.23,140.08,106.2787]
[1720435935172,7.1328,140.2,140.14,7.1357]
[1720435935483,7.1322,140.21,140.15,7.1351]
[1720435935888,7.1322,140.21,140.08,106.2787]
[1720435935889,22.335,140.22,140.16,7.1347]
[1720435936089,20.0,140.21,140.17,7.1341]
[1720435936586,20.0,140.21,140.18,0.17]
[1720435936775,20.0,140.21,140.18,7.3036]
[1720435936972,15.2033,140.22,140.19,7.133]
[1720435937177,15.2033,140.22,140.2,0.17]
[1720435937567,15.2033,140.22,140.2,7.3025]
[1720435937769,15.2033,140.22,140.21,7.1321]
[1720435937990,22.4524,140.29,140.23,7.1307]
[1720435938292,29.5806,140.29,140.24,0.17]
[1720435938675,22.4524,140.29,140.24,0.17]
[1720435939182,22.4524,140.29,140.25,7.13]
[1720435939424,22.4524,140.29,140.21,20.0]
[1720435939425,22.4524,140.29,140.26,0.17]
[1720435940485,22.4524,140.29,140.27,7.1289]
[1720435940689,22.4524,140.29,140.28,0.17]
[1720435941595,22.4524,140.29,140.28,7.2985]
[1720435941799,15.9286,140.29,140.28,7.2985]
[1720435943804,6.6348,140.31,140.29,7.1276]
[1720435944099,15.6878,140.33,140.3,0.17]
[1720435944308,15.6878,140.33,140.3,7.127]
[1720435944479,15.6878,140.33,140.31,0.17]
[1720435944679,15.6878,140.33,140.28,0.17]
[1720435944873,15.6878,140.33,140.31,7.127]
[1720435945073,15.6878,140.33,140.32,0.17]
[1720435945684,15.6878,140.33,140.31,0.17]
[1720435946098,15.6878,140.33,140.3,0.17]
[1720435946296,15.6878,140.33,140.29,0.17]
[1720435946600,15.6878,140.33,140.3,7.1271]
[1720435946782,15.6878,140.33,140.31,0.17]
[1720435947686,15.6878,140.33,140.31,7.297]
[1720435948686,15.5194,140.36,140.33,7.126]
[1720435948891,15.5194,140.36,140.35,7.125]
[1720435949079,15.5194,140.36,140.35,7.295]
[1720435949282,16.4955,140.42,140.35,0.17]